{"text_format":"1","workbook":"xlsx","n_sheets":11,"sheets":["Aide","استعلام وطباعة","تسجيل","1","data","list","نموذج","ورقة1","طباعة1","طباعة","مرجع"],"not_rendered":{"charts":0,"images":7,"macros":1,"external_links":0,"defined_names":11,"comments":0,"pivot_tables":0},"unopened":[],"bounds":{"document_bytes":16777216,"sheet_cells":100000,"rows_first":2000,"rows_last":500,"rows_between":2000,"halvings":0,"cell_chars":16384,"cell_head_chars":4096},"cells_cut":0,"cells_raw":0,"read":"whole","date_system":"1900"}

{"sheet":"Aide","index":0,"n_rows":35,"n_cols":2,"rows_kept":35,"cut":false,"hidden":true,"merged":[]}
[]
[null,"شرح الية البرنامج"]
[]
[null,"كل ما عليك فعله هو وصع اسم الشيت الذي يحمل البيانات و اسم جدول قاعدة البيانات كما هو موضح في الصورة "]
[null,"تجد هذه الاكواد في محرر الاكود داخل الموديل المسمى ModulePublic"]
[]
[]
[]
[]
[]
[]
[null,"اما ادا كان لديك بيانات في الجدول تحتاج الة قائمة (كمبوبكس) كل ماعليك فعله هو وضع تعليق على عنوان العمود المستهدف و كتابة داخل التعليق اسم حقل اليست"]
[null,"توصع القوائم في أي صفحة تريد المهم ان تتأكد من تسمة حل الليس"]
[null,"في المثال الخاص بنا نلاحض وجود تعليق على عمود الجنس و بداخله وضعنا list1"]
[]
[]
[]
[]
[]
[]
[]
[null,"ثم كما تلاحظون سمينا المدى المحدد بنفس الاسم المكتوب في التعليق list"]
[]
[]
[]
[]
[]
[]
[]
[]
[]
[]
[]
[]
[null,"اضغط هنا للانتقال الى تجربة الفورم"]

{"sheet":"استعلام وطباعة","index":1,"n_rows":11,"n_cols":3,"rows_kept":11,"cut":false,"hidden":false,"merged":[[0,1,0,2]]}
[null,"استعلام وطباعة"]
[]
[null,"رقم سهل",6777999]
[null,"تاريخ الخطاب",{"$f":"VLOOKUP(C3,data!B:J,2,0)","v":"2019-08-03"}]
[null,"رقم البلاغ",{"$f":"VLOOKUP(C3,data!B:J,3,0)","v":5874773}]
[null,"تاريخ البلاغ",{"$f":"VLOOKUP(C3,data!B:J,4,0)","v":43679}]
[null,"إسم المبلغ",{"$f":"VLOOKUP(C3,data!B:J,5,0)","v":"عبدالله الحسون"}]
[null,"نوع البلاغ",{"$f":"VLOOKUP(C3,data!B:J,6,0)","v":"نقص الأدوية"}]
[null,"وصف البلاغ",{"$f":"VLOOKUP(C3,data!B:J,7,0)","v":"سوء معاملة الطبيب"}]
[null,"قطاع",{"$f":"VLOOKUP(C3,data!B:J,8,0)","v":"قطاع الهفوف"}]
[null,"مركز صحي",{"$f":"VLOOKUP(C3,data!B:J,9,0)","v":"اليحيى"}]

{"sheet":"تسجيل","index":2,"n_rows":11,"n_cols":2,"rows_kept":11,"cut":false,"hidden":false,"merged":[[1,1,1,3],[0,1,0,2]]}
[null,"تسجيل المعاملات الواردة الى مركز تجربة المريض بالصحة العامة"]
[]
[null,"رقم الخطاب"]
[null,"تاريخ الخطاب"]
[null,"رقم البلاغ"]
[null,"تاريخ البلاغ"]
[null,"إسم المبلغ"]
[null,"نوع البلاغ"]
[null,"وصف البلاغ"]
[null,"قطاع"]
[null,"مركز صحي"]

{"sheet":"1","index":3,"n_rows":16,"n_cols":9,"rows_kept":16,"cut":false,"hidden":true,"merged":[[0,1,0,5],[1,1,1,2],[7,4,7,5],[13,4,13,5]]}
[null,"الشئون القانونية بجمرك البطحاء"]
[null,"جهه الواردة"]
[]
[null,"رقم محضر الضبط",500,null,"تاريخ","1438/09/05"]
[]
[null,"رقم البيان",{"$f":"VLOOKUP(C4,data!C:J,9,FALSE)","v":{"$error":"#N/A"}},null,"تاريخة",{"$f":"VLOOKUP(C4,data!C:J,10,FALSE)","v":{"$error":"#N/A"}}]
[]
[null,null,null,null,null,null,null,"القسم الضابط",{"$f":"VLOOKUP(C4,data!C:J,7,FALSE)","v":{"$error":"#N/A"}}]
[]
[null,null,null,null,null,null,null,"الموظف الضابط",{"$f":"VLOOKUP(C4,data!C:J,8,FALSE)","v":{"$error":"#N/A"}}]
[]
[null,"صاحب الشان",{"$f":"VLOOKUP(C4,data!C:J,3,FALSE)","v":{"$error":"#N/A"}},null,"جنسيتة",{"$f":"VLOOKUP(C4,data!C:J,4,FALSE)","v":{"$error":"#N/A"}},null,"الموظف المختص",{"$f":"VLOOKUP(C4,data!C:J,9,FALSE)","v":{"$error":"#N/A"}}]
[]
[null,"نوع المضبوط",{"$f":"VLOOKUP(C4,data!C:J,6,FALSE)","v":{"$error":"#N/A"}},null,null,null,null,"مستلم القضية",{"$f":"VLOOKUP(C4,data!C:J,8,FALSE)","v":{"$error":"#N/A"}}]
[]
[null,null,null,null,null,null,null,"نوع البيان",{"$f":"VLOOKUP(C4,data!C:J,11,FALSE)","v":{"$error":"#N/A"}}]

{"sheet":"data","index":4,"n_rows":24,"n_cols":10,"rows_kept":24,"cut":false,"hidden":false,"merged":[]}
["م","رقم الخطاب","تاريخ الخطاب","رقم البلاغ","تاريخ البلاغ","إسم المُبلغ","نوع البلاغ","وصف البلاغ","قطاع","مركز صحي"]
[1,74884959,"2019-07-29",null,"2019-07-26","عبدالله الراشد","سوء معاملة","سوء معاملة الطبيب","قطاع المبرز"]
[2,914355648,"2019-07-29",1245,"2019-07-26","عبدالله راشد","سوء معاملة الطبيب","العمران","التويثير"]
[3,914355650,"2019-07-29",125678,"2019-07-26","عبدالله راشد","سوء معاملة","سوء معاملة الطبيب","العمران","التويثير"]
[4,914355650,"2019-07-29",1245,"2019-07-26","عبدالله راشد","سوء معاملة","سوء معاملة الطبيب","قطاع المبرز"]
[5,914355650,"2019-07-29",1245,"2019-07-26","عبدالله راشد","سوء معاملة","سوء معاملة الطبيب","قطاع المبرز"]
[6,74884959,"2019-07-29",7661245,"2019-07-26","عبدالله الراشد","سوء معاملة","سوء معاملة الطبيب","قطاع المبرز"]
[7,74884959,"2019-07-29",7661245,"2019-07-26","عبدالله الراشد","سوء معاملة","سوء معاملة الطبيب","قطاع المبرز"]
[8,74884959,"2019-07-29",7661245,"2019-07-26","عبدالله الراشد","سوء معاملة","سوء معاملة الطبيب","قطاع المبرز"]
[9,74884959,"2019-07-29",7661245,"2019-07-26","عبدالله الراشد","سوء معاملة","سوء معاملة الطبيب","قطاع المبرز"]
[10,74884959,"2019-07-29",7661245,"2019-07-26","عبدالله الراشد","سوء معاملة","سوء معاملة الطبيب","قطاع الهفوف","اليحيى"]
[11,74884959,"2019-07-29",7661245,"2019-07-26","عبدالله الراشد","سوء معاملة","سوء معاملة الطبيب","قطاع الهفوف","اليحيى"]
[12,74884959,"2019-07-29",7661245,"2019-07-26","عبدالله الراشد","سوء معاملة","سوء معاملة الطبيب","قطاع الهفوف","اليحيى"]
[13,6373488483,"2019-08-03",3674773,"2019-08-02","عبدالله الحسن","نقص الأدوية","سوء معاملة الطبيب","قطاع العمران"]
[14,6373488483,"2019-08-03",3674773,"2019-08-02","عبدالله الحسن","نقص الأدوية","سوء معاملة الطبيب","قطاع العمران"]
[15,6373488483,"2019-08-03",3674773,"2019-08-02","عبدالله الحسن","نقص الأدوية","سوء معاملة الطبيب","قطاع العمران","التويثير"]
[16,6373488483,"2019-08-03",3674773,"2019-08-02","عبدالله الحسن","نقص الأدوية","سوء معاملة الطبيب","قطاع العمران"]
[17,8373488483,"2019-08-03",5674773,"2019-08-02","عبدالله الحسني","نقص الأدوية","سوء معاملة الطبيب","قطاع المبرز"]
[18,8373488483,"2019-08-03",5674773,"2019-08-02","عبدالله الحسني","نقص الأدوية","سوء معاملة الطبيب","قطاع المبرز","القادسية"]
[19,8373488483,"2019-08-03",5874773,"2019-08-02","عبدالله الحسنين","نقص الأدوية","سوء معاملة الطبيب","قطاع المبرز"]
[20,8873488483,"2019-08-03",5874773,"2019-08-02","عبدالله الحسنين","نقص الأدوية","سوء معاملة الطبيب","قطاع المبرز"]
[21,65884894,"2019-08-03",5874773,"2019-08-02","عبدالله الحسنين","نقص الأدوية","سوء معاملة الطبيب","قطاع المبرز"]
[null,6777999,"2019-08-03",5874773,"2019-08-02","عبدالله الحسون","نقص الأدوية","سوء معاملة الطبيب","قطاع الهفوف","اليحيى"]
[null,158200,"2019-08-03",36522,"2019-08-02","KKKKKKK","TTTTTTTTTTT","WWWWWWWWWW","قطاع المبرز","الشعبة"]

{"sheet":"list","index":5,"n_rows":3,"n_cols":2,"rows_kept":3,"cut":false,"hidden":true,"merged":[]}
["ذكر","متزوج"]
["انثى","اعزب"]
[null,"مطلق"]

{"sheet":"نموذج","index":6,"n_rows":23,"n_cols":42,"rows_kept":23,"cut":false,"hidden":true,"merged":[[5,3,5,56],[4,3,4,56],[6,3,6,56],[15,14,15,55],[17,4,17,55],[13,41,13,55],[7,14,7,28],[9,14,9,28],[11,14,11,28],[13,14,13,28],[7,31,7,40],[9,31,9,40],[11,31,11,40],[13,31,13,40],[7,41,7,55],[9,41,9,55],[15,4,15,13],[18,4,18,28],[21,31,21,40],[22,31,22,40],[20,31,20,40],[19,31,19,40],[18,31,18,55],[19,41,19,55],[20,41,20,55],[19,4,19,13],[20,4,20,13],[19,14,19,28],[20,14,20,28],[11,41,11,55],[7,4,7,13],[9,4,9,13],[11,4,11,13],[13,4,13,13]]}
[]
[]
[]
[]
[null,null,null,"الشئون القانونية بجمرك البطحاء"]
[null,null,null,"حسب توجيهات مدير الشئون القانونية بجمرك البطحاء تم توجية القضية بياناتها ادناه "]
[null,null,null,"تفاصيل القضية"]
[null,null,null,null,"رقم محضر الضبط",null,null,null,null,null,null,null,null,null,555,null,null,null,null,null,null,null,null,null,null,null,null,null,null,null,null,"تاريخ",null,null,null,null,null,null,null,null,null,{"$f":"VLOOKUP(O8,data!C:J,2,FALSE)","v":{"$error":"#N/A"}}]
[]
[null,null,null,null,"صاحب الشان",null,null,null,null,null,null,null,null,null,{"$f":"VLOOKUP(O8,data!C:J,3,FALSE)","v":{"$error":"#N/A"}},null,null,null,null,null,null,null,null,null,null,null,null,null,null,null,null,"جنسيتة",null,null,null,null,null,null,null,null,null,{"$f":"VLOOKUP(O8,data!C:J,4,FALSE)","v":{"$error":"#N/A"}}]
[]
[null,null,null,null,"رقم الهوية",null,null,null,null,null,null,null,null,null,{"$f":"VLOOKUP(O8,data!C:J,5,FALSE)","v":{"$error":"#N/A"}},null,null,null,null,null,null,null,null,null,null,null,null,null,null,null,null,"نوع المضبوط",null,null,null,null,null,null,null,null,null,{"$f":"VLOOKUP(O8,data!C:J,6,FALSE)","v":{"$error":"#N/A"}}]
[]
[null,null,null,null,"القسم الضابط",null,null,null,null,null,null,null,null,null,{"$f":"VLOOKUP(O8,data!C:J,7,FALSE)","v":{"$error":"#N/A"}},null,null,null,null,null,null,null,null,null,null,null,null,null,null,null,null,"الموظف الضابط",null,null,null,null,null,null,null,null,null,{"$f":"VLOOKUP(O8,data!C:J,8,FALSE)","v":{"$error":"#N/A"}}]
[]
[null,null,null,null,"ملاحظات",null,null,null,null,null,null,null,null,null,{"$f":"VLOOKUP(O8,data!C:J,11,FALSE)","v":{"$error":"#N/A"}}]
[]
[null,null,null,null,"تم استلام المعاملة المدونه بياناتها اعلاة من قبل الموظف الموقع ادناه"]
[null,null,null,null,"الموظف المختص",null,null,null,null,null,null,null,null,null,null,null,null,null,null,null,null,null,null,null,null,null,null,null,null,null,null,"مستلم المعاملة"]
[null,null,null,null,"اسم الموظف/",null,null,null,null,null,null,null,null,null,{"$f":"VLOOKUP(O8,data!C:J,9,FALSE)","v":{"$error":"#N/A"}},null,null,null,null,null,null,null,null,null,null,null,null,null,null,null,null,"اسم الموظف/",null,null,null,null,null,null,null,null,null,{"$f":"VLOOKUP(O8,data!C:J,10,FALSE)","v":{"$error":"#N/A"}}]
[null,null,null,null,"رقم الوظيفى/",null,null,null,null,null,null,null,null,null,null,null,null,null,null,null,null,null,null,null,null,null,null,null,null,null,null,"رقم الوظيفى/"]
[null,null,null,null,null,null,null,null,null,null,null,null,null,null,null,null,null,null,null,null,null,null,null,null,null,null,null,null,null,null,null,"التوقيع/"]
[null,null,null,null,null,null,null,null,null,null,null,null,null,null,null,null,null,null,null,null,null,null,null,null,null,null,null,null,null,null,null,"التاريخ/"]

{"sheet":"ورقة1","index":7,"n_rows":1,"n_cols":1,"rows_kept":1,"cut":false,"hidden":true,"merged":[]}
["Option Explicit"]

{"sheet":"طباعة1","index":8,"n_rows":20,"n_cols":42,"rows_kept":20,"cut":false,"hidden":true,"merged":[[1,3,1,56],[6,41,6,55],[10,41,10,55],[18,41,18,55],[4,3,4,13],[8,41,8,55],[2,3,2,56],[3,3,3,56],[4,14,4,28],[4,31,4,40],[4,41,4,55],[10,14,10,28],[6,4,6,13],[6,14,6,28],[6,31,6,40],[8,31,8,40],[12,4,12,28],[10,31,10,40],[16,41,16,55],[10,4,10,13],[8,14,8,28],[8,4,8,13],[12,31,12,55],[19,31,19,40],[18,31,18,40],[17,4,17,13],[17,14,17,28],[17,31,17,40],[17,41,17,55],[14,4,14,55],[15,4,15,28],[15,31,15,55],[16,4,16,13],[16,14,16,28],[16,31,16,40]]}
[]
[null,null,null,"الشئون القانونية بجمرك البطحاء"]
[null,null,null,"حسب توجيهات مدير الشئون القانونية بجمرك البطحاء تم توجية القضية بياناتها ادناه "]
[null,null,null,"تفاصيل القضية"]
[null,null,null,"رقم محضر الضبط /",null,null,null,null,null,null,null,null,null,null,555,null,null,null,null,null,null,null,null,null,null,null,null,null,null,null,null,"تاريخ /",null,null,null,null,null,null,null,null,null,{"$f":"VLOOKUP(O5,data!C:J,2,FALSE)","v":{"$error":"#N/A"}}]
[]
[null,null,null,null,"صاحب الشان /",null,null,null,null,null,null,null,null,null,{"$f":"VLOOKUP(O5,data!C:J,3,FALSE)","v":{"$error":"#N/A"}},null,null,null,null,null,null,null,null,null,null,null,null,null,null,null,null,"جنسيتة /",null,null,null,null,null,null,null,null,null,{"$f":"VLOOKUP(O5,data!C:J,4,FALSE)","v":{"$error":"#N/A"}}]
[]
[null,null,null,null,"رقم الهوية /",null,null,null,null,null,null,null,null,null,{"$f":"VLOOKUP(O5,data!C:J,5,FALSE)","v":{"$error":"#N/A"}},null,null,null,null,null,null,null,null,null,null,null,null,null,null,null,null,"نوع المضبوط /",null,null,null,null,null,null,null,null,null,{"$f":"VLOOKUP(O5,data!C:J,6,FALSE)","v":{"$error":"#N/A"}}]
[]
[null,null,null,null,"القسم الضابط /",null,null,null,null,null,null,null,null,null,{"$f":"VLOOKUP(O5,data!C:J,7,FALSE)","v":{"$error":"#N/A"}},null,null,null,null,null,null,null,null,null,null,null,null,null,null,null,null,"الموظف الضابط /",null,null,null,null,null,null,null,null,null,{"$f":"VLOOKUP(O5,data!C:J,8,FALSE)","v":{"$error":"#N/A"}}]
[]
[null,null,null,null,"ملاحظات",null,null,null,null,null,null,null,null,null,null,null,null,null,null,null,null,null,null,null,null,null,null,null,null,null,null,{"$f":"VLOOKUP(O5,data!C:J,11,FALSE)","v":{"$error":"#N/A"}}]
[]
[null,null,null,null,"تم استلام المعاملة المدونه بياناتها اعلاة من قبل الموظف الموقع ادناه"]
[null,null,null,null,"الموظف المختص",null,null,null,null,null,null,null,null,null,null,null,null,null,null,null,null,null,null,null,null,null,null,null,null,null,null,"مستلم القضية"]
[null,null,null,null,"اسم الموظف/",null,null,null,null,null,null,null,null,null,{"$f":"VLOOKUP(O5,data!C:J,9,FALSE)","v":{"$error":"#N/A"}},null,null,null,null,null,null,null,null,null,null,null,null,null,null,null,null,"اسم الموظف/",null,null,null,null,null,null,null,null,null,{"$f":"VLOOKUP(O5,data!C:J,10,FALSE)","v":{"$error":"#N/A"}}]
[null,null,null,null,"رقم الوظيفى/",null,null,null,null,null,null,null,null,null,null,null,null,null,null,null,null,null,null,null,null,null,null,null,null,null,null,"رقم الوظيفى/"]
[null,null,null,null,null,null,null,null,null,null,null,null,null,null,null,null,null,null,null,null,null,null,null,null,null,null,null,null,null,null,null,"التاريخ /"]
[null,null,null,null,null,null,null,null,null,null,null,null,null,null,null,null,null,null,null,null,null,null,null,null,null,null,null,null,null,null,null,"التوقيع/"]

{"sheet":"طباعة","index":9,"n_rows":15,"n_cols":7,"rows_kept":15,"cut":false,"hidden":false,"merged":[[9,3,9,6],[10,3,10,4],[10,5,10,6],[1,2,1,6],[2,2,2,6],[3,3,3,6],[4,4,4,6],[7,4,7,6]]}
[]
[]
[null,null,"حسب توجيهات مدير الشئون القانونية بجمرك البطحاء تم توجية القضية بياناتها ادناه "]
[null,null,null,"تفاصيل القضية"]
[null,null,null,"جهه الواردة /",{"$f":"'استعلام وطباعة'!C4","v":43680}]
[null,null,null,"وصف المعاملة /",{"$f":"'استعلام وطباعة'!C8","v":"نقص الأدوية"},"نوعها /",{"$f":"'استعلام وطباعة'!C5","v":5874773}]
[null,null,null,"الرقم /",{"$f":"'استعلام وطباعة'!C6","v":43679},"تاريخها /",{"$f":"'استعلام وطباعة'!C7","v":"عبدالله الحسون"}]
[null,null,null,"تفاصيل المعاملة /",{"$f":"'استعلام وطباعة'!C9","v":"سوء معاملة الطبيب"}]
[]
[null,null,null,"تم استلام المعاملة المدونه بياناتها اعلاة من قبل الموظف الموقع ادناه"]
[null,null,null,"الموظف المختص",null,"مستلم القضية"]
[null,null,null,"اسم الموظف/",{"$f":"'استعلام وطباعة'!C10","v":"قطاع الهفوف"},"اسم الموظف/",{"$f":"'استعلام وطباعة'!C11","v":"اليحيى"}]
[null,null,null,"رقم الوظيفى/",null,"رقم الوظيفى/"]
[null,null,null,null,null,"التاريخ /"]
[null,null,null,null,null,"التوقيع/"]

{"sheet":"مرجع","index":10,"n_rows":28,"n_cols":23,"rows_kept":28,"cut":false,"hidden":false,"merged":[]}
[null,"التوجيه","قطاع الهفوف","قطاع المبرز","قطاع العمران","الخدمات الرأسية",null,null,null,null,null,null,"عبارات"]
[null,"مساعد مدير الشئون الصحية للصحة العامة","المعلمين","محاسن","العمران","مركز فحص الزواج بالنزهة",null,null,null,null,null,null,"عليه نأمل بعد الإطلاع التواصل مع المذكور للتحقق من البلاغ وإفادتنا حيال ذلك وليكن بصفة عاجلة."]
[null,"مدير الشؤون المالية والإدارية بالصحة العامة","البندرية","العيون","الكلابية","مركز فحص الزواج بالجبيل",null,null,null,null,null,null,"عليه نأمل بعد الإطلاع التواصل مع المذكورة للتحقق من البلاغ وإفادتنا حيال ذلك وليكن بصفة عاجلة."]
[null,"مشرف قطاع الهفوف للصحة العامة","الصالحية","حزم المبرز","الحليله","مركز فحص الزواج بالخالدية",null,null,null,null,null,null,"،حيث يشكو من"]
[null,"مشرف قطاع المبرز للصحة العامة","الثليثية","الراشدية","التويثير","مركز مكافحة الدرن",null,null,null,null,null,null,"،حيث تشكو من"]
[null,"مشرف قطاع العمران للصحة العامة","الخالديه","الوزية","إسكان الكلابية","مركز مكافحة التدخين"]
[null,"رئيس قسم المتابعة بالصحة العامة","الفيصلية","النزهة","البطالية"]
[null,"مدير إدارة البرامج الصحية والأمراض الوراثية ","السلمانية الشمالية","القادسية","بني معن"]
[null,"مدير إدارة شئون المراكز بالصحة العامة","العزيزية","المطيرفي","الجبيل"]
[null,"مدير إدارة الموارد البشرية بالصحة العامة","الفاضلية","المراح","الرميلة"]
[null,"مدير إدارة مكافحة العدوى بالصحة العامة","حي الملك فهد","شعبة المبرز","المركز"]
[null,"مدير إدارة الأمراض المعدية","الرفعة","اليحيى","الجشة"]
[null,"مدير إدارة مكافحة نواقل المرض","الحفيره","جليجلة","الجفر"]
[null,"مدير إدارة مكافحة التدخين","الهفوف","الشعبة","الطرف"]
[null,"مدير إدارة مكافحة الدرن","المزروع","الشقيق","الفضول"]
[null,null,"الرقيقة","غصيبة","المنصورة"]
[null,null,"الغويبة","القرين","الدالوة"]
[null,null,"السيح","الجرن","الحوطة"]
[null,null,"مريطبة","شمال المبرز","القاره"]
[null,null,"الطويلة","الخرس الشمالي","المنيزلة"]
[null,null,"حرض","الدهو","الشهارين"]
[null,null,"شجعة","الخن","فضيله"]
[null,null,"الزايدية","يبرين","السالمية"]
[null,null,"إسكان الخالدية",null,"خريص"]
[null,null,null,null,"المقدام"]
[]
["المعلمين","البندرية","الصالحية","الثليثية","الخالديه","الفيصلية","السلمانية الشمالية","العزيزية","الفاضلية","حي الملك فهد","الرفعة","الحفيره","الهفوف","المزروع","الرقيقة","الغويبة","السيح","مريطبة","الطويلة","حرض","شجعة","الزايدية","إسكان الخالدية"]
["قطاع المبرز"]